[Event "*** Titled Tuesday Blitz"]
[Site "Chess.com"]
[Date "2020.05.19"]
[Round "3"]
[White "vanyakuba"]
[Black "Igor_Lysyj"]
[Result "0-1"]
[WhiteElo "2451"]
[BlackElo "2791"]
[TimeControl "180+1"]
[EndTime "12:30:27 PDT"]
[Termination "Igor_Lysyj won on time"]

1. e4 {[%clk 0:03:00.9]} 1... e5 {[%clk 0:02:59.5]} 2. Nf3 {[%clk 0:03:00.7]}
2... Nc6 {[%clk 0:02:59.2]} 3. Bb5 {[%clk 0:03:00.8]} 3... a6 {[%clk 0:02:59.6]}
4. Ba4 {[%clk 0:03:01.1]} 4... Nf6 {[%clk 0:02:59.4]} 5. d3 {[%clk 0:03:01.5]}
5... Bc5 {[%clk 0:02:59.1]} 6. c3 {[%clk 0:03:01.6]} 6... d6 {[%clk 0:02:57.4]}
7. Nbd2 {[%clk 0:03:01.4]} 7... O-O {[%clk 0:02:56.5]} 8. Nf1 {[%clk 0:02:59.3]}
8... d5 {[%clk 0:02:53.5]} 9. Qe2 {[%clk 0:02:58.6]} 9... b5 {[%clk 0:02:48.2]}
10. Bb3 {[%clk 0:02:58]} 10... Be6 {[%clk 0:02:43.3]} 11. Ng3 {[%clk 0:02:56.9]}
11... Na5 {[%clk 0:02:35.8]} 12. Bc2 {[%clk 0:02:12.8]} 12... dxe4 {[%clk
0:02:35]} 13. Nxe4 {[%clk 0:02:09.2]} 13... Nxe4 {[%clk 0:02:33.8]} 14. dxe4
{[%clk 0:02:08.4]} 14... Bc4 {[%clk 0:02:32.9]} 15. Qd1 {[%clk 0:02:08.3]} 15...
Qxd1+ {[%clk 0:02:30.8]} 16. Bxd1 {[%clk 0:02:08.5]} 16... Nc6 {[%clk 0:02:27]}
17. Bc2 {[%clk 0:01:56.5]} 17... f6 {[%clk 0:02:23.4]} 18. Nd2 {[%clk
0:01:24.9]} 18... Bf7 {[%clk 0:02:19.6]} 19. Bb3 {[%clk 0:01:24.9]} 19... Rfd8
{[%clk 0:01:59.8]} 20. Bxf7+ {[%clk 0:01:24.4]} 20... Kxf7 {[%clk 0:01:59.5]}
21. Nb3 {[%clk 0:01:24.1]} 21... Bb6 {[%clk 0:01:58.7]} 22. Ke2 {[%clk 0:01:24]}
22... Ke6 {[%clk 0:01:55.2]} 23. Be3 {[%clk 0:01:23.5]} 23... a5 {[%clk
0:01:43.3]} 24. a4 {[%clk 0:00:45.2]} 24... bxa4 {[%clk 0:01:38.4]} 25. Rxa4
{[%clk 0:00:44.7]} 25... Rab8 {[%clk 0:01:38]} 26. Ra3 {[%clk 0:00:16.8]} 26...
Ke7 {[%clk 0:01:15.1]} 27. Nc5 {[%clk 0:00:10.1]} 27... Bxc5 {[%clk 0:01:10.8]}
28. Bxc5+ {[%clk 0:00:11]} 28... Ke6 {[%clk 0:01:10.7]} 29. b3 {[%clk
0:00:11.5]} 29... Rd7 {[%clk 0:00:40.9]} 30. Rd1 {[%clk 0:00:11.3]} 30... Rxd1
{[%clk 0:00:34.2]} 31. Kxd1 {[%clk 0:00:12.2]} 31... h5 {[%clk 0:00:34.2]} 32.
Kc2 {[%clk 0:00:12.5]} 32... g6 {[%clk 0:00:34]} 33. Be3 {[%clk 0:00:11.9]}
33... f5 {[%clk 0:00:34.2]} 34. f3 {[%clk 0:00:09.4]} 34... f4 {[%clk
0:00:34.3]} 35. Bf2 {[%clk 0:00:09.2]} 35... g5 {[%clk 0:00:34.4]} 36. Ra1
{[%clk 0:00:09.4]} 36... g4 {[%clk 0:00:34.4]} 37. Rd1 {[%clk 0:00:08.9]} 37...
Rg8 {[%clk 0:00:33.5]} 38. Rg1 {[%clk 0:00:08.4]} 38... Nd8 {[%clk 0:00:31]} 39.
Kd3 {[%clk 0:00:06.4]} 39... Nf7 {[%clk 0:00:29.9]} 40. Ke2 {[%clk 0:00:05.6]}
40... Rb8 {[%clk 0:00:28.8]} 41. Rb1 {[%clk 0:00:04.9]} 41... Nd6 {[%clk
0:00:28.4]} 42. Bc5 {[%clk 0:00:03.6]} 42... a4 {[%clk 0:00:27.6]} 43. Bxd6
{[%clk 0:00:03]} 43... Kxd6 {[%clk 0:00:25.5]} 44. b4 {[%clk 0:00:03.4]} 44...
Ra8 {[%clk 0:00:25]} 45. Ra1 {[%clk 0:00:03.8]} 45... c5 {[%clk 0:00:24.7]} 46.
Kd3 {[%clk 0:00:03.6]} 46... cxb4 {[%clk 0:00:24]} 47. cxb4 {[%clk 0:00:04.5]}
47... Kc6 {[%clk 0:00:23.8]} 48. Kc4 {[%clk 0:00:05]} 48... Kb6 {[%clk
0:00:23.5]} 49. Ra3 {[%clk 0:00:03]} 49... Rc8+ {[%clk 0:00:21.6]} 50. Kd5
{[%clk 0:00:03.3]} 50... Kb5 {[%clk 0:00:21.9]} 51. Kxe5 {[%clk 0:00:03.6]}
51... g3 {[%clk 0:00:21.2]} 52. hxg3 {[%clk 0:00:03.1]} 52... fxg3 {[%clk
0:00:21.5]} 53. Kf4 {[%clk 0:00:03.8]} 53... h4 {[%clk 0:00:20.9]} 54. Kg4
{[%clk 0:00:03.8]} 54... Kxb4 {[%clk 0:00:20.4]} 55. Ra1 {[%clk 0:00:03.6]}
55... Rh8 {[%clk 0:00:19.2]} 56. e5 {[%clk 0:00:03.8]} 56... h3 {[%clk
0:00:18.8]} 57. gxh3 {[%clk 0:00:03.8]} 57... Rg8+ {[%clk 0:00:18.1]} 58. Kf5
{[%clk 0:00:03.3]} 58... g2 {[%clk 0:00:18.5]} 59. Rg1 {[%clk 0:00:04.2]} 59...
a3 {[%clk 0:00:18.4]} 60. Kf6 {[%clk 0:00:04.6]} 60... a2 {[%clk 0:00:17]} 61.
Kf7 {[%clk 0:00:05.2]} 61... Rg3 {[%clk 0:00:16.4]} 62. f4 {[%clk 0:00:04.1]}
62... Kb3 {[%clk 0:00:14.4]} 63. f5 {[%clk 0:00:04.1]} 63... Kb2 {[%clk
0:00:14.2]} 64. e6 {[%clk 0:00:04.6]} 64... a1=Q {[%clk 0:00:13.7]} 65. Rxa1
{[%clk 0:00:04.8]} 65... Kxa1 {[%clk 0:00:13.9]} 66. e7 {[%clk 0:00:05.6]} 66...
g1=Q {[%clk 0:00:13.3]} 67. e8=Q {[%clk 0:00:06.1]} 67... Rg7+ {[%clk
0:00:13.1]} 68. Kf6 {[%clk 0:00:02.5]} 68... Qg5+ {[%clk 0:00:12.4]} 69. Ke6
{[%clk 0:00:02.8]} 69... Qe3+ {[%clk 0:00:12.5]} 70. Kf6 {[%clk 0:00:01.6]}
70... Qxe8 {[%clk 0:00:11.8]} 71. Kxg7 {[%clk 0:00:02.2]} 71... Qe7+ {[%clk
0:00:12]} 72. Kg6 {[%clk 0:00:00.1]} 72... Qh4 {[%clk 0:00:11.8]} 0-1

[Event "*** Titled Tuesday Blitz"]
[Site "Chess.com"]
[Date "2020.05.19"]
[Round "3"]
[White "FMalexhdez"]
[Black "Parkas"]
[Result "0-1"]
[WhiteElo "2050"]
[BlackElo "2302"]
[TimeControl "180+1"]
[EndTime "12:30:31 PDT"]
[Termination "Parkas won on time"]

1. e4 {[%clk 0:03:00.9]} 1... c5 {[%clk 0:02:59.7]} 2. Nf3 {[%clk 0:03:00.3]}
2... d6 {[%clk 0:02:59.6]} 3. d4 {[%clk 0:03:00.8]} 3... cxd4 {[%clk 0:03:00]}
4. Nxd4 {[%clk 0:03:00.9]} 4... Nf6 {[%clk 0:03:00.6]} 5. Nc3 {[%clk 0:03:01.1]}
5... a6 {[%clk 0:02:58.5]} 6. h3 {[%clk 0:03:00.1]} 6... g6 {[%clk 0:02:58]} 7.
g4 {[%clk 0:02:52.5]} 7... Bg7 {[%clk 0:02:56.4]} 8. Bg2 {[%clk 0:02:53.1]} 8...
Nbd7 {[%clk 0:02:50.6]} 9. g5 {[%clk 0:02:47.1]} 9... Nh5 {[%clk 0:02:45.7]} 10.
O-O {[%clk 0:02:36.1]} 10... O-O {[%clk 0:02:29.8]} 11. Nde2 {[%clk 0:02:21.1]}
11... b5 {[%clk 0:02:03.6]} 12. f4 {[%clk 0:02:10.5]} 12... Bb7 {[%clk 0:02:03]}
13. Nd5 {[%clk 0:02:06.3]} 13... e6 {[%clk 0:01:53.1]} 14. Ne3 {[%clk
0:02:03.5]} 14... Nc5 {[%clk 0:01:52.6]} 15. f5 {[%clk 0:01:27.9]} 15... exf5
{[%clk 0:01:15.3]} 16. exf5 {[%clk 0:01:24.2]} 16... Bxg2 {[%clk 0:01:15.3]} 17.
Nxg2 {[%clk 0:01:23.4]} 17... Be5 {[%clk 0:01:01.3]} 18. f6 {[%clk 0:01:03.9]}
18... Qd7 {[%clk 0:00:56.5]} 19. Rf3 {[%clk 0:00:52.4]} 19... Rfe8 {[%clk
0:00:49]} 20. Nef4 {[%clk 0:00:49.3]} 20... Nxf4 {[%clk 0:00:40.3]} 21. Bxf4
{[%clk 0:00:44.2]} 21... Bxb2 {[%clk 0:00:32]} 22. Rb1 {[%clk 0:00:39.9]} 22...
Be5 {[%clk 0:00:31.9]} 23. Qd5 {[%clk 0:00:34.2]} 23... Qb7 {[%clk 0:00:26.2]}
24. Qxb7 {[%clk 0:00:26]} 24... Nxb7 {[%clk 0:00:27.1]} 25. Rd1 {[%clk
0:00:23.3]} 25... Rac8 {[%clk 0:00:26.3]} 26. Rf2 {[%clk 0:00:20.6]} 26... Nc5
{[%clk 0:00:23.9]} 27. h4 {[%clk 0:00:19]} 27... Ne6 {[%clk 0:00:19]} 28. Bxe5
{[%clk 0:00:18]} 28... dxe5 {[%clk 0:00:19.5]} 29. Ne3 {[%clk 0:00:17.6]} 29...
Red8 {[%clk 0:00:16.1]} 30. Nd5 {[%clk 0:00:17.2]} 30... Kf8 {[%clk 0:00:16.1]}
31. Rfd2 {[%clk 0:00:16.1]} 31... Nd4 {[%clk 0:00:15.2]} 32. Ne7 {[%clk
0:00:15.1]} 32... Nf3+ {[%clk 0:00:14.8]} 33. Kf2 {[%clk 0:00:14.8]} 33... Rxd2+
{[%clk 0:00:13.3]} 34. Rxd2 {[%clk 0:00:12.9]} 34... Nxd2 {[%clk 0:00:14.2]} 35.
Nxc8 {[%clk 0:00:13]} 35... h6 {[%clk 0:00:13]} 36. Ke3 {[%clk 0:00:11.1]} 36...
Nc4+ {[%clk 0:00:12.9]} 37. Ke4 {[%clk 0:00:11.4]} 37... hxg5 {[%clk 0:00:13.8]}
38. hxg5 {[%clk 0:00:10.6]} 38... Ke8 {[%clk 0:00:14.4]} 39. Na7 {[%clk
0:00:08.4]} 39... Kd7 {[%clk 0:00:14.7]} 40. Kd5 {[%clk 0:00:08]} 40... Kc7
{[%clk 0:00:11]} 41. Nc6 {[%clk 0:00:07.8]} 41... Nb6+ {[%clk 0:00:09]} 42. Kc5
{[%clk 0:00:06.5]} 42... Na4+ {[%clk 0:00:08.5]} 43. Kd5 {[%clk 0:00:06.7]}
43... Nc3+ {[%clk 0:00:08.9]} 44. Kc5 {[%clk 0:00:06.9]} 44... Ne4+ {[%clk
0:00:08.8]} 45. Kd5 {[%clk 0:00:06.6]} 45... Nxg5 {[%clk 0:00:08.4]} 46. Nxe5
{[%clk 0:00:06.2]} 46... a5 {[%clk 0:00:07.1]} 47. c3 {[%clk 0:00:05.3]} 47...
Kb7 {[%clk 0:00:06.2]} 48. Kc5 {[%clk 0:00:04.6]} 48... Ne4+ {[%clk 0:00:06.2]}
49. Kxb5 {[%clk 0:00:04.6]} 49... Nxf6 {[%clk 0:00:06.1]} 50. Nxf7 {[%clk
0:00:04.9]} 50... Kc7 {[%clk 0:00:06.1]} 51. Kxa5 {[%clk 0:00:05.4]} 51... Kd7
{[%clk 0:00:06.4]} 52. c4 {[%clk 0:00:05.5]} 52... Ke6 {[%clk 0:00:06.8]} 53.
Nh6 {[%clk 0:00:04.5]} 53... g5 {[%clk 0:00:05.9]} 54. c5 {[%clk 0:00:04.7]}
54... Kd5 {[%clk 0:00:05.5]} 55. Kb5 {[%clk 0:00:03.5]} 55... Ne4 {[%clk
0:00:04.8]} 56. c6 {[%clk 0:00:03.7]} 56... Kd6 {[%clk 0:00:04.2]} 57. Kb6
{[%clk 0:00:03.9]} 57... Nf6 {[%clk 0:00:03.9]} 58. Kb7 {[%clk 0:00:03.4]} 58...
Nd5 {[%clk 0:00:04]} 59. Ng4 {[%clk 0:00:01.7]} 59... Kc5 {[%clk 0:00:01.2]} 60.
a4 {[%clk 0:00:02.6]} 60... Kd6 {[%clk 0:00:01.7]} 61. a5 {[%clk 0:00:03.2]}
61... Nb4 {[%clk 0:00:01.9]} 62. a6 {[%clk 0:00:04]} 62... Nxc6 {[%clk
0:00:02.3]} 63. a7 {[%clk 0:00:03.6]} 63... Nxa7 {[%clk 0:00:01.6]} 64. Kxa7
{[%clk 0:00:04]} 64... Kd5 {[%clk 0:00:02.5]} 65. Kb6 {[%clk 0:00:04.1]} 65...
Ke4 {[%clk 0:00:03.1]} 66. Kc5 {[%clk 0:00:03.9]} 66... Kf4 {[%clk 0:00:03.7]}
67. Nh6 {[%clk 0:00:02.3]} 67... Ke5 {[%clk 0:00:03.5]} 68. Kc4 {[%clk
0:00:01.1]} 68... Kf4 {[%clk 0:00:04.4]} 69. Kd3 {[%clk 0:00:01.5]} 69... Ke5
{[%clk 0:00:05.3]} 70. Ke2 {[%clk 0:00:01.8]} 70... Kf6 {[%clk 0:00:06.2]} 71.
Kf2 {[%clk 0:00:02.3]} 71... Ke5 {[%clk 0:00:07.1]} 72. Kf3 {[%clk 0:00:02.6]}
72... Kf6 {[%clk 0:00:07.3]} 73. Kg4 {[%clk 0:00:03.2]} 73... Kg6 {[%clk
0:00:08.2]} 74. Nf5 {[%clk 0:00:03.2]} 74... Kf6 {[%clk 0:00:09.1]} 75. Ne3
{[%clk 0:00:03.4]} 75... Kg6 {[%clk 0:00:09.5]} 76. Nf1 {[%clk 0:00:03.8]} 76...
Kf6 {[%clk 0:00:09.9]} 77. Ng3 {[%clk 0:00:04.3]} 77... Ke6 {[%clk 0:00:10.5]}
0-1

[Event "*** Titled Tuesday Blitz"]
[Site "Chess.com"]
[Date "2020.05.19"]
[Round "3"]
[White "Andro2"]
[Black "dennisodessa"]
[Result "1-0"]
[WhiteElo "2416"]
[BlackElo "2215"]
[TimeControl "180+1"]
[EndTime "12:30:33 PDT"]
[Termination "Andro2 won by resignation"]

1. e4 {[%clk 0:03:00.9]} 1... e6 {[%clk 0:03:00.5]} 2. d4 {[%clk 0:02:59.9]}
2... d5 {[%clk 0:02:59.9]} 3. Nd2 {[%clk 0:03:00.5]} 3... Nf6 {[%clk 0:02:55.5]}
4. e5 {[%clk 0:03:00]} 4... Nfd7 {[%clk 0:02:55.5]} 5. Bd3 {[%clk 0:03:00.5]}
5... c5 {[%clk 0:02:56.4]} 6. c3 {[%clk 0:03:01]} 6... Nc6 {[%clk 0:02:56.5]} 7.
Ne2 {[%clk 0:03:01.6]} 7... cxd4 {[%clk 0:02:54.6]} 8. cxd4 {[%clk 0:03:01.1]}
8... f6 {[%clk 0:02:55.5]} 9. exf6 {[%clk 0:03:00.8]} 9... Qxf6 {[%clk
0:02:56.4]} 10. O-O {[%clk 0:02:58.5]} 10... Nxd4 {[%clk 0:02:53]} 11. Nxd4
{[%clk 0:02:58.1]} 11... Qxd4 {[%clk 0:02:53.9]} 12. Nf3 {[%clk 0:02:58.2]}
12... Qf6 {[%clk 0:02:53.8]} 13. Bg5 {[%clk 0:02:56.2]} 13... Qf7 {[%clk
0:02:53.9]} 14. Re1 {[%clk 0:02:49.8]} 14... Bd6 {[%clk 0:02:49.3]} 15. Bh4
{[%clk 0:02:45.6]} 15... h6 {[%clk 0:02:27.4]} 16. Bg3 {[%clk 0:02:39.5]} 16...
Bxg3 {[%clk 0:02:25.7]} 17. hxg3 {[%clk 0:02:38.4]} 17... O-O {[%clk 0:02:26.6]}
18. Rc1 {[%clk 0:02:32.5]} 18... e5 {[%clk 0:02:21.7]} 19. Rc7 {[%clk
0:02:20.4]} 19... e4 {[%clk 0:02:19.4]} 20. Rxe4 {[%clk 0:02:20]} 20... dxe4
{[%clk 0:02:17.3]} 21. Bc4 {[%clk 0:02:20.2]} 21... Qxc4 {[%clk 0:02:07.4]} 22.
Rxc4 {[%clk 0:02:18.5]} 22... exf3 {[%clk 0:02:07.4]} 23. gxf3 {[%clk
0:02:18.6]} 23... Nb6 {[%clk 0:01:57.7]} 24. Rc7 {[%clk 0:02:10]} 24... Be6
{[%clk 0:01:57.1]} 25. Rxb7 {[%clk 0:01:50.2]} 25... Bd5 {[%clk 0:01:44]} 26.
Rxb6 {[%clk 0:01:42.7]} 26... axb6 {[%clk 0:01:43.8]} 27. Qxd5+ {[%clk
0:01:42.4]} 27... Kh8 {[%clk 0:01:44.7]} 28. a3 {[%clk 0:01:41.3]} 28... Rad8
{[%clk 0:01:38]} 29. Qb7 {[%clk 0:01:36.8]} 29... Rf6 {[%clk 0:01:31.5]} 30. Kg2
{[%clk 0:01:30.8]} 30... Rd2 {[%clk 0:01:27.1]} 31. b4 {[%clk 0:01:26.9]} 31...
Ra2 {[%clk 0:01:05.5]} 32. a4 {[%clk 0:01:26.2]} 32... Kh7 {[%clk 0:00:54.2]}
33. Qe4+ {[%clk 0:01:12.2]} 33... Kh8 {[%clk 0:00:49.1]} 34. f4 {[%clk
0:01:06.7]} 34... Rd6 {[%clk 0:00:34.8]} 35. Qe3 {[%clk 0:00:59]} 35... Rb2
{[%clk 0:00:21.9]} 36. Qe4 {[%clk 0:00:43.8]} 36... Rdd2 {[%clk 0:00:17.6]} 37.
Qf3 {[%clk 0:00:41.1]} 37... Rxb4 {[%clk 0:00:15.7]} 38. f5 {[%clk 0:00:33.1]}
38... Rbb2 {[%clk 0:00:11.6]} 39. Qa8+ {[%clk 0:00:30]} 39... Kh7 {[%clk
0:00:11.1]} 40. Qe4 {[%clk 0:00:18.9]} 40... Rxf2+ {[%clk 0:00:10.2]} 41. Kh3
{[%clk 0:00:17.5]} 41... Rh2+ {[%clk 0:00:06.5]} 42. Kg4 {[%clk 0:00:16.8]}
42... Rhe2 {[%clk 0:00:07.4]} 43. Qd3 {[%clk 0:00:15.3]} 43... Red2 {[%clk
0:00:06.7]} 44. Qe4 {[%clk 0:00:14.7]} 44... Re2 {[%clk 0:00:05]} 45. Qc4 {[%clk
0:00:11.3]} 45... Rec2 {[%clk 0:00:03.5]} 46. Qf7 {[%clk 0:00:09.4]} 46... Rb4+
{[%clk 0:00:03.6]} 47. Kh3 {[%clk 0:00:09.4]} 47... Rc5 {[%clk 0:00:02.4]} 48.
Qg6+ {[%clk 0:00:09]} 48... Kh8 {[%clk 0:00:02.1]} 49. Qe8+ {[%clk 0:00:09.1]}
49... Kh7 {[%clk 0:00:02.3]} 50. Qg6+ {[%clk 0:00:09.7]} 50... Kh8 {[%clk
0:00:01.7]} 51. f6 {[%clk 0:00:10.3]} 51... Rg5 {[%clk 0:00:02]} 52. Qxg5 {[%clk
0:00:03.4]} 52... hxg5 {[%clk 0:00:01.7]} 53. f7 {[%clk 0:00:04.1]} 53... Rb1
{[%clk 0:00:02.1]} 54. f8=Q+ {[%clk 0:00:03.3]} 54... Kh7 {[%clk 0:00:03]} 55.
Qf5+ {[%clk 0:00:03.9]} 55... Kh6 {[%clk 0:00:02.9]} 56. Qxb1 {[%clk 0:00:03.1]}
56... g6 {[%clk 0:00:03.8]} 57. Kg4 {[%clk 0:00:03.3]} 57... Kg7 {[%clk
0:00:03.9]} 58. Qxb6 {[%clk 0:00:03.9]} 58... Kf7 {[%clk 0:00:03.7]} 59. Qd6
{[%clk 0:00:04.2]} 59... Ke8 {[%clk 0:00:04.6]} 60. Qxg6+ {[%clk 0:00:03.8]}
60... Ke7 {[%clk 0:00:05.1]} 61. Qxg5+ {[%clk 0:00:04.5]} 61... Kd6 {[%clk
0:00:06]} 62. Kf4 {[%clk 0:00:04.9]} 62... Kc6 {[%clk 0:00:06.4]} 63. Qe5 {[%clk
0:00:05.5]} 63... Kb6 {[%clk 0:00:06.7]} 64. Qd5 {[%clk 0:00:06.1]} 64... Kc7
{[%clk 0:00:06.6]} 65. Qe6 {[%clk 0:00:06.2]} 65... Kb7 {[%clk 0:00:06.9]} 66.
Ke5 {[%clk 0:00:06.9]} 1-0

[Event "*** Titled Tuesday Blitz"]
[Site "Chess.com"]
[Date "2020.05.19"]
[Round "3"]
[White "IljaJoke"]
[Black "okriak"]
[Result "1/2-1/2"]
[WhiteElo "2536"]
[BlackElo "2773"]
[TimeControl "180+1"]
[EndTime "12:30:55 PDT"]
[Termination "Game drawn - insufficient material"]

1. d4 {[%clk 0:03:00.9]} 1... d5 {[%clk 0:02:58.5]} 2. c4 {[%clk 0:03:00.9]}
2... e6 {[%clk 0:02:57.8]} 3. Nf3 {[%clk 0:03:00.6]} 3... c6 {[%clk 0:02:57.6]}
4. e3 {[%clk 0:02:57.9]} 4... Nf6 {[%clk 0:02:57.1]} 5. b3 {[%clk 0:02:56.8]}
5... Bb4+ {[%clk 0:02:55.8]} 6. Nbd2 {[%clk 0:02:52.1]} 6... c5 {[%clk
0:02:52.5]} 7. cxd5 {[%clk 0:02:50.1]} 7... Nxd5 {[%clk 0:02:50.5]} 8. Bb5+
{[%clk 0:02:49.6]} 8... Bd7 {[%clk 0:02:50]} 9. Bxd7+ {[%clk 0:02:49]} 9... Nxd7
{[%clk 0:02:49.8]} 10. Bb2 {[%clk 0:02:40.3]} 10... O-O {[%clk 0:02:49.4]} 11.
O-O {[%clk 0:02:39.4]} 11... Rc8 {[%clk 0:02:48.9]} 12. Ne4 {[%clk 0:02:29]}
12... N5f6 {[%clk 0:02:45.3]} 13. Nxf6+ {[%clk 0:02:23.8]} 13... Nxf6 {[%clk
0:02:44.9]} 14. a3 {[%clk 0:02:24.3]} 14... Ba5 {[%clk 0:02:42.4]} 15. dxc5
{[%clk 0:02:24.8]} 15... Qe7 {[%clk 0:02:22]} 16. b4 {[%clk 0:02:22.9]} 16...
Bc7 {[%clk 0:02:21.7]} 17. Be5 {[%clk 0:02:17]} 17... b6 {[%clk 0:02:17.9]} 18.
Bxc7 {[%clk 0:02:11]} 18... Rxc7 {[%clk 0:02:17.6]} 19. cxb6 {[%clk 0:02:09.4]}
19... axb6 {[%clk 0:02:17.9]} 20. Rc1 {[%clk 0:02:08.6]} 20... Ra8 {[%clk
0:02:15.6]} 21. Rxc7 {[%clk 0:01:56.3]} 21... Qxc7 {[%clk 0:02:15.3]} 22. Qb3
{[%clk 0:01:53.4]} 22... b5 {[%clk 0:02:11.3]} 23. Nd4 {[%clk 0:01:50]} 23...
Qb7 {[%clk 0:02:08.7]} 24. Qd3 {[%clk 0:01:46.3]} 24... Qa6 {[%clk 0:02:03.4]}
25. Ra1 {[%clk 0:01:31.3]} 25... Rb8 {[%clk 0:02:03.1]} 26. a4 {[%clk
0:01:30.4]} 26... Nd5 {[%clk 0:02:02.9]} 27. Nxb5 {[%clk 0:01:10.1]} 27... Nxb4
{[%clk 0:02:02]} 28. Qc4 {[%clk 0:00:57.8]} 28... Nd5 {[%clk 0:01:58.5]} 29. h3
{[%clk 0:00:55.9]} 29... h5 {[%clk 0:01:57.7]} 30. e4 {[%clk 0:00:24.5]} 30...
Nf6 {[%clk 0:01:57.2]} 31. e5 {[%clk 0:00:20.5]} 31... Nd5 {[%clk 0:01:56.3]}
32. Nd6 {[%clk 0:00:20.8]} 32... Qa5 {[%clk 0:01:52.5]} 33. Rc1 {[%clk
0:00:18.1]} 33... g6 {[%clk 0:01:46.8]} 34. Ne4 {[%clk 0:00:09.9]} 34... Kg7
{[%clk 0:01:41.6]} 35. Nf6 {[%clk 0:00:08.3]} 35... Rb4 {[%clk 0:01:36.2]} 36.
Qc8 {[%clk 0:00:07.1]} 36... Nxf6 {[%clk 0:01:35.4]} 37. exf6+ {[%clk 0:00:08]}
37... Kxf6 {[%clk 0:01:35]} 38. Qh8+ {[%clk 0:00:07.4]} 38... Kg5 {[%clk
0:01:32.4]} 39. Qc3 {[%clk 0:00:05.3]} 39... Rxa4 {[%clk 0:01:28.5]} 40. Qe3+
{[%clk 0:00:04.7]} 40... Kf6 {[%clk 0:01:28.1]} 41. g3 {[%clk 0:00:04.8]} 41...
Kg7 {[%clk 0:01:25.8]} 42. Kh2 {[%clk 0:00:04.4]} 42... Qd5 {[%clk 0:01:24.1]}
43. h4 {[%clk 0:00:04]} 43... Re4 {[%clk 0:01:23]} 44. Qc3+ {[%clk 0:00:03.7]}
44... Qd4 {[%clk 0:01:22.2]} 45. Qxd4+ {[%clk 0:00:04]} 45... Rxd4 {[%clk
0:01:22.6]} 46. Kg2 {[%clk 0:00:04.9]} 46... Kf6 {[%clk 0:01:22.4]} 47. Rc3
{[%clk 0:00:05.3]} 47... Rd5 {[%clk 0:01:22.4]} 48. Rf3+ {[%clk 0:00:06.1]}
48... Rf5 {[%clk 0:01:22.2]} 49. Ra3 {[%clk 0:00:07]} 49... Rb5 {[%clk
0:01:21.9]} 50. Ra7 {[%clk 0:00:07]} 50... e5 {[%clk 0:01:21.5]} 51. Ra6+ {[%clk
0:00:07.3]} 51... Kf5 {[%clk 0:01:21.5]} 52. Ra4 {[%clk 0:00:07.4]} 52... f6
{[%clk 0:01:20.7]} 53. Kf3 {[%clk 0:00:07.8]} 53... Rb3+ {[%clk 0:01:20.3]} 54.
Kg2 {[%clk 0:00:07.8]} 54... Rd3 {[%clk 0:01:19.3]} 55. Rb4 {[%clk 0:00:07.6]}
55... e4 {[%clk 0:01:19.4]} 56. Rb5+ {[%clk 0:00:07.4]} 56... Ke6 {[%clk
0:01:19.4]} 57. Rb6+ {[%clk 0:00:07.9]} 57... Ke5 {[%clk 0:01:19.3]} 58. Rb5+
{[%clk 0:00:08.1]} 58... Rd5 {[%clk 0:01:19.5]} 59. Rb3 {[%clk 0:00:08.3]} 59...
g5 {[%clk 0:01:19.4]} 60. hxg5 {[%clk 0:00:08.1]} 60... fxg5 {[%clk 0:01:19.9]}
61. Rb8 {[%clk 0:00:09]} 61... Kf5 {[%clk 0:01:19.4]} 62. Rf8+ {[%clk
0:00:08.2]} 62... Kg4 {[%clk 0:01:19.3]} 63. Re8 {[%clk 0:00:08.6]} 63... Rd4
{[%clk 0:01:19.1]} 64. Re5 {[%clk 0:00:08.6]} 64... Ra4 {[%clk 0:01:17.4]} 65.
Re8 {[%clk 0:00:08.6]} 65... Rb4 {[%clk 0:01:14.4]} 66. Re7 {[%clk 0:00:08.6]}
66... Rd4 {[%clk 0:01:14.3]} 67. Re8 {[%clk 0:00:09]} 67... h4 {[%clk
0:01:13.2]} 68. gxh4 {[%clk 0:00:08.2]} 68... Kxh4 {[%clk 0:01:13.5]} 69. Rh8+
{[%clk 0:00:08]} 69... Kg4 {[%clk 0:01:13.6]} 70. Re8 {[%clk 0:00:08.2]} 70...
Kf4 {[%clk 0:01:12.3]} 71. Rf8+ {[%clk 0:00:08.3]} 71... Ke5 {[%clk 0:01:12.5]}
72. Re8+ {[%clk 0:00:08.7]} 72... Kf5 {[%clk 0:01:13]} 73. Rf8+ {[%clk
0:00:08.9]} 73... Kg6 {[%clk 0:01:13.3]} 74. Rg8+ {[%clk 0:00:09.1]} 74... Kf6
{[%clk 0:01:13]} 75. Re8 {[%clk 0:00:09.2]} 75... Kf7 {[%clk 0:01:12.7]} 76. Re5
{[%clk 0:00:09.1]} 76... Kf6 {[%clk 0:01:12.6]} 77. Re8 {[%clk 0:00:09.2]} 77...
Ra4 {[%clk 0:01:12.7]} 78. Rf8+ {[%clk 0:00:09.4]} 78... Kg6 {[%clk 0:01:12.6]}
79. Re8 {[%clk 0:00:09.2]} 79... Kf5 {[%clk 0:01:11.4]} 80. Rf8+ {[%clk
0:00:09.4]} 80... Ke5 {[%clk 0:01:11.7]} 81. Re8+ {[%clk 0:00:09.7]} 81... Kd4
{[%clk 0:01:11.5]} 82. Rg8 {[%clk 0:00:08.9]} 82... Ra5 {[%clk 0:01:11.4]} 83.
Rd8+ {[%clk 0:00:08]} 83... Rd5 {[%clk 0:01:11]} 84. Re8 {[%clk 0:00:08.4]}
84... Kd3 {[%clk 0:01:11.1]} 85. Kg3 {[%clk 0:00:08]} 85... Rf5 {[%clk
0:01:10.7]} 86. Rd8+ {[%clk 0:00:07.4]} 86... Ke2 {[%clk 0:01:10.7]} 87. Re8
{[%clk 0:00:07.3]} 87... Rf4 {[%clk 0:01:08.6]} 88. Re5 {[%clk 0:00:06.2]} 88...
Rf3+ {[%clk 0:01:07.2]} 89. Kg4 {[%clk 0:00:06.4]} 89... Kd3 {[%clk 0:01:07.1]}
90. Rf5 {[%clk 0:00:03.2]} 90... Ke2 {[%clk 0:00:57.5]} 91. Re5 {[%clk
0:00:03.4]} 91... Rf4+ {[%clk 0:00:53]} 92. Kg3 {[%clk 0:00:03.4]} 92... Kf1
{[%clk 0:00:46.8]} 93. Rxg5 {[%clk 0:00:02.3]} 93... Rxf2 {[%clk 0:00:46.1]} 94.
Re5 {[%clk 0:00:02.6]} 94... Rf3+ {[%clk 0:00:43.7]} 95. Kg4 {[%clk 0:00:02.1]}
95... Re3 {[%clk 0:00:43.2]} 96. Kf4 {[%clk 0:00:02.6]} 96... Kf2 {[%clk
0:00:43.5]} 97. Rxe4 {[%clk 0:00:02.7]} 97... Rxe4+ {[%clk 0:00:43.9]} 98. Kxe4
{[%clk 0:00:03.6]} 1/2-1/2